Cogmind - Beta 14 @@@ ROGUE MODE // 2025.03.09 @ 15:54:23 Player: perambulator Result: Destroyed by G-47 Trooper with Particle Gun Performance ------------- Evolutions (0) 0 Regions Visited (2) 400 Robots Destroyed (19) 95 Value Destroyed (508) 508 Prototype IDs (0) 0 Alien Tech Used (0) 0 Bonus (0) 0 TOTAL SCORE: 1003 Bonus ------- None Cogmind --------- Core Integrity 0/250 Matter 291/300 Energy 100/100 System Corruption 0% Temperature Cool (61) Movement Walking (260) Ox2 Location -10/Mines Parts ------- > --- POWER (1) -------- (None) > --- PROPULSION (2) --- Aluminum Leg > --- UTILITY (2) ------ Large Storage Unit > --- WEAPON (2) ------- Light Assault Rifle Light Assault Rifle > --- INVENTORY (15) --- Light Nuclear Core Aluminum Leg Improved Heat Sink Targeting Computer Power Shielding Weapon Shielding Medium Laser Particle Gun Light Assault Rifle Light Assault Rifle Peak State ------------ > --- POWER ------------ Light Nuclear Core > --- PROPULSION ------- Aluminum Leg Aluminum Leg > --- UTILITY ---------- Large Storage Unit Propulsion Shielding > --- WEAPON ----------- Assault Rifle Light Assault Rifle > --- INVENTORY -------- Light Ion Engine Aluminum Leg Aluminum Leg Improved Heat Sink Power Shielding Medium Laser Particle Gun [Rating: 10] Favorites ----------- Power Light Nuclear Core Engine Ion Engine Power Core Light Nuclear Core Propulsion Aluminum Leg Leg Aluminum Leg Utility Large Storage Unit Storage Large Storage Unit Protection Propulsion Shielding Weapon Light Assault Rifle Ballistic Gun Light Assault Rifle Build | -11 -10 -10 ------- Run | Yrd Mat Min Slots Evolved . | . . . Power . | . . . Propulsion . | . . . Utility . | . . . Weapon . | . . . Parts Attached 12 | 6 5 1 Power 3 | 1 2 . Engine 2 | 1 1 . Core 1 | . 1 . Reactor . | . . . Propulsion 3 | 2 . 1 Treads . | . . . Leg 3 | 2 . 1 Wheel . | . . . Hover . | . . . Flight . | . . . Utility 3 | 1 2 . Device . | . . . Storage 2 | 1 1 . Processor . | . . . Hackware . | . . . Protection 1 | . 1 . Artifact . | . . . Weapon 3 | 2 1 . Energy Gun . | . . . Energy Cannon . | . . . Ballistic Gun 3 | 2 1 . Ballistic Cannon . | . . . Launcher . | . . . Special Weapon . | . . . Impact Weapon . | . . . Slashing Weapon . | . . . Piercing Weapon . | . . . Special Melee Weapon . | . . . Unidentified Prototypes . | . . . Parts Lost 6 | . 2 4 Power 2 | . 1 1 Propulsion 2 | . . 2 Utility 1 | . . 1 Weapon 1 | . 1 . Highest Loss Streak 2 | . 1 2 To Critical Strikes . | . . . Average Slot Usage (%) 95 | . 97 83 Engine 5 | . 6 . Core 7 | . 7 13 Leg 26 | . 28 19 Storage 14 | . 14 14 Protection 12 | . 12 7 Ballistic Gun 27 | . 27 28 Peak Build Rating 10 | 6 10 10 Average Rating 8 | 4 8 8 On Entrance 5 | . 6 10 Naked Turns . | . . . Heaviest Build 29 | 11 29 28 Greatest Support 20 | 20 20 20 Greatest Overweight (x) 2 | 1 1 2 Average Overweight (x) . | . . 1 Largest Inventory Capacity 15 | 8 15 15 Average Capacity 14 | 6 14 15 Most Carried 12 | 1 11 12 Average Carried 5 | . 5 10 Final Capacity 15 | 8 15 15 Final Carried 11 | 1 11 10 Class Distribution -------------------- 100% | Mutant Dominant Class ---------------- Mutant | -10/Materials Mutant | -10/Mines Resources | -11 -10 -10 ----------- Run | Yrd Mat Min Matter Collected 512 | 260 228 24 Remotely . | . . . Salvage Created 631 | . 451 180 Parts 46 | . 36 10 Haulers Intercepted . | . . . Recyclers Shooed 4 | . 3 1 Parts Field Recycled . | . . . Retrieved Matter . | . . . Parts Self-Destructed . | . . . Prevented . | . . . Kills | -11 -10 -10 ------- Run | Yrd Mat Min Combat Hostiles Destroyed 18 | . 12 6 Guns 18 | . 12 6 Classes Destroyed 3 | . 3 . Worker 1 | . 1 . Swarmer 6 | . 3 3 Grunt 12 | . 9 3 Best Kill Streak 4 | . 4 3 Combat Bots Only 4 | . 4 3 Max Kills in Single Turn 1 | . 1 1 Gunslinging . | . . . Exploded . | . . . Melee . | . . . Uniques/NPCs Destroyed . | . . . Combat | -11 -10 -10 -------- Run | Yrd Mat Min Hostile Shots Fired 115 | . 77 38 Missed 33 | . 23 10 Damage Taken 959 | . 629 330 Core 255 | . 145 110 Absorbed by Shields . | . . . Redirected to Shielding 51 | . 37 14 Core Remaining (%) 100 | 100 . . Volleys Fired 66 | . 49 17 Largest 2 | . 2 2 Hottest 40 | . 40 40 Shots Fired 132 | . 98 34 Gun 132 | . 98 34 Cannon . | . . . Launcher . | . . . Special . | . . . Kinetic 132 | . 98 34 Thermal . | . . . Explosive . | . . . Electromagnetic . | . . . Robot Hit Streak 18 | . 18 5 Robot Miss Streak 3 | . 3 2 Penetration Max . | . . . Secondary Targets 4 | . 4 . Max Gunslinging Chain 1 | . 1 . Shots Hit Robots 81 | . 61 20 Core Hits 41 | . 28 13 Critical Kills 2 | . 1 1 Critical Parts Destroyed . | . . . Critical Strikes 2 | . 1 1 Destroy 2 | . 1 1 Melee Attacks . | . . . Impact . | . . . Slashing . | . . . Piercing . | . . . Sneak Attacks . | . . . Combat Hostiles . | . . . Follow-up Attacks . | . . . Damage Inflicted 843 | . 676 167 Guns 833 | . 670 163 Cannons . | . . . Explosions . | . . . Melee . | . . . Ramming 10 | . 6 4 Kinetic 833 | . 670 163 Thermal . | . . . Explosive . | . . . Electromagnetic . | . . . Impact . | . . . Slashing . | . . . Piercing . | . . . Highest Corruption . | . . . Average Corruption . | . . . Corruption Purged . | . . . Corruption Blocked . | . . . Overload Shots . | . . . Overflow Damage . | . . . Projectiles . | . . . Explosions . | . . . Melee . | . . . Knockbacks . | . . . Impact . | . . . Kinetic . | . . . Secondary . | . . . Self-Inflicted Damage . | . . . Shots . | . . . Rammed . | . . . Targets Rammed 4 | . 2 2 Kicked 4 | . 2 2 Crushed . | . . . Highest Temperature 78 | . 19 78 Average Temperature 13 | . 7 21 Received Heat Transfer 516 | . 318 198 Siege Activations . | . . . Robots Corrupted . | . . . Combat Hostiles . | . . . Parts Fried . | . . . Impact Corruptions . | . . . Robots Melted . | . . . Combat Hostiles . | . . . Parts Melted . | . . . Heat Transferred . | . . . Parts Sabotaged . | . . . Parts Stolen . | . . . Parts Stripped . | . . . Power Chain Reactions . | . . . Alert | -11 -10 -10 ------- Run | Yrd Mat Min Peak Influence 140 | . 140 120 Initial 5 | . . 5 Average 38 | . 36 67 Maximum Alert Level . | . . . Low Security (%) 100 | 100 100 100 Level 1 . | . . . Level 2 . | . . . Level 3 . | . . . Level 4 . | . . . Level 5 . | . . . High Security . | . . . Max Security . | . . . Squads Dispatched 2 | . 2 . Investigation 1 | . 1 . Extermination . | . . . Reinforcement 1 | . 1 . Assault . | . . . Garrison . | . . . Intercept . | . . . Searches Triggered . | . . . Construction Impeded . | . . . Haulers Reinforced . | . . . Active Scanning Responses . | . . . Cargo Convoy Interrupts . | . . . Stealth | -11 -10 -10 --------- Run | Yrd Mat Min Distress Signals 3 | . 3 . Communications Jammed . | . . . Distress Signals . | . . . Times Spotted 28 | . 21 7 Peak Tracking Total 6 | . 6 3 Tactical Retreats . | . . . Traps | -11 -10 -10 ------- Run | Yrd Mat Min Traps Triggered 1 | . 1 . Indirectly . | . . . Trap Hack Attempts . | . . . Triggered . | . . . Disarmed . | . . . Reprogrammed . | . . . Reused . | . . . Traps Extracted . | . . . Installed . | . . . Triggered . | . . . Machines | -11 -10 -10 ---------- Run | Yrd Mat Min Machines Disabled . | . . . Max in Single Turn . | . . . Machines Repaired . | . . . Machines Dismantled . | . . . Machines Sabotaged . | . . . Overloaded Fab Kills . | . . . Hacking | -11 -10 -10 --------- Run | Yrd Mat Min Machines Accessed 1 | . 1 . Terminals 1 | . 1 . Fabricators . | . . . Repair Stations . | . . . Recycling Units . | . . . Scanalyzers . | . . . Garrison Access . | . . . Total Hacks 1 | . 1 . Successful 1 | . 1 . Failed . | . . . Catastrophic . | . . . Database Lockouts . | . . . Manual . | . . . Terminals 1 | . 1 . Fabricators . | . . . Repair Stations . | . . . Recycling Units . | . . . Scanalyzers . | . . . Garrison Access . | . . . Terminal Hacks 1 | . 1 . Zone Layout 1 | . 1 . Fabricator Hacks . | . . . Repair Station Hacks . | . . . Recycling Unit Hacks . | . . . Scanalyzer . | . . . Garrison Access Hacks . | . . . Unauthorized Hacks . | . . . Terminals . | . . . Fabricators . | . . . Repair Stations . | . . . Recycling Units . | . . . Scanalyzers . | . . . Garrison Access . | . . . Data Cores Recovered . | . . . Used . | . . . Hacking Detections 1 | . 1 . Full Trace Events . | . . . Feedback Events . | . . . Feedback Blocked . | . . . Robot Schematics Acquired . | . . . Robots Built . | . . . Authchips . | . . . Time . | . . . Total Robot Build Rating . | . . . Part Schematics Acquired . | . . . Parts Built . | . . . Authchips . | . . . Time . | . . . Total Part Build Rating . | . . . Parts Repaired . | . . . Time . | . . . Parts Recycled . | . . . Recycled Matter . | . . . Retrieved Matter . | . . . Retrieved Components . | . . . Parts Scanalyzed . | . . . Part Schematics Acquired . | . . . Parts Damaged . | . . . Bothacking | -11 -10 -10 ------------ Run | Yrd Mat Min Used RIF Installer . | . . . Robots Hacked . | . . . Non-combat . | . . . Combat . | . . . Robot Hacks Applied . | . . . Relay Couplers Released . | . . . Fabnet Peak Effective % . | . . . Robots Rewired . | . . . Allies Hacked . | . . . Hacks Repelled . | . . . Allies | -11 -10 -10 -------- Run | Yrd Mat Min Total Allies . | . . . Largest Group . | . . . Highest-Rated Group . | . . . Highest-Rated Ally . | . . . Total Orders . | . . . Ally Attacks . | . . . Total Damage . | . . . Kills . | . . . Allies Corrupted . | . . . Allies Melted . | . . . Intel | -11 -10 -10 ------- Run | Yrd Mat Min Robot Analysis Total . | . . . Derelict Logs Recovered . | . . . Drone Launches . | . . . Drone Recoveries . | . . . Exploration | -11 -10 -10 ------------- Run | Yrd Mat Min Turns Passed 1689 | 64 1442 183 Spaces Moved 790 | 52 677 61 Core 15 | 15 . . Treads . | . . . Legs 775 | 37 677 61 Wheels . | . . . Hover . | . . . Flight . | . . . Fastest Speed 50 | 50 120 190 Average Speed 185 | 104 189 216 Slowest Speed 260 | 120 190 260 Overloaded Moves . | . . . Propulsion Burnouts . | . . . Robots Hopped . | . . . Cave-ins Triggered . | . . . Exploration Rate (%) 37 | 4 88 19 Regions Visited 2 Branch Regions 1 Pre-discovered Areas . | . . . Known Exits Taken . | . . . Unknown Exits Taken 2 | 1 1 . Scrap Searched . | . . . Spaces Dug . | . . . Terrain Destroyed . | . . . Melee . | . . . Projectile . | . . . AOE . | . . . Terrain Rammed . | . . . Walls Destroyed . | . . . Machines Disabled . | . . . Actions | -11 -10 -10 --------- Run | Yrd Mat Min Total 889 | 58 748 83 Wait 3 | . 3 . Move 788 | 51 676 61 Hop . | . . . Pick Up 13 | 1 11 1 Fast Attach 9 | 6 3 . Attach 2 | . 1 1 Detach . | . . . Swap 1 | . 1 . Drop 3 | . 2 1 Fire 66 | . 49 17 Melee . | . . . Ram . | . . . Kick 4 | . 2 2 Crush . | . . . Escape Stasis . | . . . Rewire . | . . . Trap . | . . . Miscellaneous . | . . . Route ------- -11/Scrapyard -10/Materials (discovered 4 exits: [*Mat x2] / [*Min x2]) -10/Mines History --------- Turn | Location | Event 11 | -11/Scrapyard | Discovered new exit (range 15) 65 | -11/Scrapyard | Entered Materials 303 | -10/Materials | Build established: Mutant 400 | -10/Materials | Discovered new exit (range 8) 618 | -10/Materials | Discovered new exit (range 16) 669 | -10/Materials | Discovered new exit (range 14) 707 | -10/Materials | Core integrity fell below 50% 1049 | -10/Materials | Discovered new exit (range 14) 1507 | -10/Materials | Entered Mines 1679 | -10/Mines | Core integrity fell below 20% 1690 | -10/Mines | Destroyed by G-47 Trooper with Particle Gun Last Messages --------------- G-47 Trooper suffers critical hit (Destroy). G-47 Trooper destroyed. G-34 Mercenary destroyed. Acquired Lgt. Nuclear Core. Dropped Lgt. Ion Engine. Acquired 18 matter. Kicked R-06 Scavenger out of the way. S-10 Pest destroyed. Propulsion Shielding destroyed. Aluminum Leg destroyed. S-10 Pest destroyed. R-06 Scavenger collects Flight Unit. S-10 Pest destroyed. Kicked R-06 Scavenger out of the way. R-06 Scavenger collects Flight Unit. Acquired 6 matter. Critical hit (Burn: +37). G-34 Mercenary destroyed. Lgt. Nuclear Core destroyed. Critical hit (Burn: +37). Map ----- +----------------------------------------------------+ | ?????????????????????????????????????????????????? | | ?????????????????????????????????????????????????? | | ?????????????????????????????????????????????????? | | ?????????????????????????????????????????????????? | | ?????????????????????????????????????????????????? | | ?????????????????????????????????????????????????? | | ?????????????????????????????????????????????????? | | ?????????????????????????????????????????????????? | | ?????????????????????????????????????????????????? | | ?????????????????????????????????????????????????? | | ????????????????????????? ???????????????????????? | | ????????????????????????? #??#???????????????????? | | ????????????????????????? ## ????????????????? | | ????????????????????????? ????????????????? | | ????????????????????????? ?????????????????? | | ????????????????????????? ?????????????????? | | ???????????????????????## ??????????????????? | | ??????????????????????## ??????????????????? | | ??????????????????????? ???????????????????? | | ??????????????????????? #???????????????????? | | ??????????????????????? #???????????????????? | | ???????????????????????? ????????????????????? | | ???????????????????????? #????????????????????? | | ?????????????#??????????# #????????????????????? | | ?????????????# ????????# #????????????????????? | | ??????????#### ??????#@= #????????????????????? | | ??????????? $ ???##g%##????????????????????? | | ??????????????# ## *##????????????????????? | | ??????????????# % % ##############???????? | | ??????????????# % #???????? | | ??????????????## ############ #??????#? | | ???????????????## #?########## ##### #? | | ????????????????## #?# #? | | ?????????????????## ?# #? | | ??????????????????# ## ####### ##### ##? | | ??????????????????# u #?????????# #???????? | | ??????????????????# r ?????##### #???????? | | ??????????????????## ""????# #???????? | | ???????????????????# ""????# #####???????? | | ???????????????????# ""????# #???????????? | | ??????????????????? ?????# #???????????? | | ?????????????????? ?????# ############# | | ?????????????????? ?????# % %*%[ # | | ????????????????????? ### ?????###### !""" # | | ????????????????????????? ??????????# """ # | | ????????????????????????????????????????# """ # | | ????????????????????????????????????????# # | | ????????????????????????????????????????########## | | ?????????????????????????????????????????????????? | | ?????????????????????????????????????????????????? | +----------------------------------------------------+ Best States ------------- Heat Dissipation 25 Energy Generation 14 Energy Capacity 250 Matter Stores 300 Matter Capacity 300 Sight Range 16 Terrain Scan Density 10 Propulsion Shielding 33 Evasion (%) 55 Item Schematics ----------------- None Robot Schematics ------------------ None Fabricated ------------ Nothing Alien Tech Used ----------------- None Achievements -------------- None Challenges ------------ None Game ------ Seed IntegritySurgeStripper Manual? 0 Play Time 00:12:15 Cumulative 25.6 hours Start 2025.03.05 @ 16:15:28 End 2025.03.09 @ 15:54:23 Sessions 2 Manual Loads 0 Difficulty Rogue Special Mode None Game No. 43 Rogue 43 Adventurer 0 Explorer 0 Win Type - Total 0 Types 0/0/0/0/0/0/0/0/0 Lore% 15 Gallery% 20 Achievement% 17 Wizard Run 0 Options --------- Layout 1 ASCII 0 Keyboard 0 Movement Arrows Keybinds 0 Fullscreen 2 Font 18/SmallcapsGlow Map View 25x20 Zoom Use 90% Tactical HUD 0 Map Filters NONE Filters NONE Steam 0 RUN: 905999e3-015d-463b-85b6-db16f310996f